Cogmind - Beta 13 @@@ ROGUE MODE // 2024.06.30 @ 20:01:10 Player: Duduxx Result: Destroyed by G-34 Mercenary with Small Laser Performance ------------- Evolutions (1) 500 Regions Visited (2) 400 Robots Destroyed (17) 85 Value Destroyed (445) 445 Prototype IDs (0) 0 Alien Tech Used (0) 0 Bonus (0) 0 TOTAL SCORE: 1430 Bonus ------- None Cogmind --------- Core Integrity 0/400 Matter 189/300 Energy 23/250 System Corruption 2% Temperature Cool (64) Movement Core (300) Ox5 Location -9/Materials Parts ------- > --- POWER (1) -------- Ion Engine > --- PROPULSION (2) --- (None) > --- UTILITY (4) ------ Small Storage Unit Trap Scanner Signal Interpreter Advanced Targeting Computer > --- WEAPON (2) ------- Pulse Rifle Pulse Rifle > --- INVENTORY (8) ---- Aluminum Leg Trap Scanner Terrain Scanner Terrain Scan Processor Rocket Launcher Peak State ------------ > --- POWER ------------ Improved Ion Engine > --- PROPULSION ------- Light Treads Aluminum Leg > --- UTILITY ---------- Small Storage Unit Signal Interpreter Advanced Targeting Computer Power Shielding > --- WEAPON ----------- Particle Gun Pulse Rifle > --- INVENTORY -------- Light Ion Engine Trap Scanner Trap Scanner Terrain Scanner Terrain Scan Processor Rocket Launcher [Rating: 16] Favorites ----------- Power Ion Engine Engine Ion Engine Propulsion Aluminum Leg Treads Light Treads Leg Aluminum Leg Utility Small Storage Unit Device Structural Scanner Storage Small Storage Unit Processor Signal Interpreter Protection Power Shielding Weapon Light Assault Rifle Energy Gun Particle Gun Energy Cannon Light EM Pulse Cannon Ballistic Gun Light Assault Rifle Build | -11 -10 -9 ------- Run | Yrd Mat Mat Slots Evolved 2 | . . 2 Power . | . . . Propulsion . | . . . Utility 2 | . . 2 Weapon . | . . . Parts Attached 33 | 6 3 24 Power 5 | 1 . 4 Engine 5 | 1 . 4 Core . | . . . Reactor . | . . . Propulsion 13 | 2 . 11 Treads 4 | . . 4 Leg 9 | 2 . 7 Wheel . | . . . Hover . | . . . Flight . | . . . Utility 7 | 1 2 4 Device 3 | . 1 2 Storage 1 | 1 . . Processor 2 | . . 2 Hackware . | . . . Protection 1 | . 1 . Artifact . | . . . Weapon 8 | 2 1 5 Energy Gun 4 | . . 4 Energy Cannon 1 | . 1 . Ballistic Gun 3 | 2 . 1 Ballistic Cannon . | . . . Launcher . | . . . Special Weapon . | . . . Impact Weapon . | . . . Slashing Weapon . | . . . Piercing Weapon . | . . . Special Melee Weapon . | . . . Unidentified Prototypes . | . . . Parts Lost 18 | . 2 16 Power 3 | . . 3 Propulsion 7 | . . 7 Utility 2 | . 1 1 Weapon 6 | . 1 5 Highest Loss Streak 10 | . 2 10 To Critical Strikes . | . . . Average Slot Usage (%) 93 | . 96 92 Engine 11 | . 14 10 Treads 7 | . . 11 Leg 14 | . 28 8 Device 5 | . 7 4 Storage 11 | . 14 11 Processor 10 | . . 15 Protection 8 | . 3 11 Energy Gun 4 | . . 6 Energy Cannon 3 | . 3 3 Ballistic Gun 13 | . 23 9 Naked Turns . | . . . Heaviest Build 18 | 13 17 18 Greatest Support 40 | 20 20 40 Greatest Overweight (x) 3 | 3 . 3 Average Overweight (x) . | . . . Largest Inventory Capacity 8 | 8 8 8 Average Capacity 7 | 7 8 8 Most Carried 8 | 4 8 8 Average Carried 6 | 3 6 6 Final Capacity 8 | 8 8 8 Final Carried 8 | 4 8 5 Class Distribution -------------------- 100% | Mutant Dominant Class ---------------- Mutant | -10/Materials Mutant | -9/Materials Resources | -11 -10 -9 ----------- Run | Yrd Mat Mat Matter Collected 590 | 227 99 264 Remotely . | . . . Salvage Created 560 | . 176 384 Parts 33 | . 14 19 Haulers Intercepted . | . . . Recyclers Shooed . | . . . Parts Field Recycled . | . . . Retrieved Matter . | . . . Parts Self-Destructed . | . . . Prevented . | . . . Kills | -11 -10 -9 ------- Run | Yrd Mat Mat Combat Hostiles Destroyed 15 | . 5 10 Guns 12 | . 5 7 Cannons 3 | . . 3 Classes Destroyed 4 | . 3 1 Watcher 2 | . 1 1 Swarmer 6 | . 3 3 Grunt 8 | . 2 6 Sentry 1 | . . 1 Best Kill Streak 3 | . 2 3 Combat Bots Only 3 | . 2 3 Max Kills in Single Turn 1 | . 1 1 Gunslinging . | . . . Exploded . | . . . Melee . | . . . Uniques/NPCs Destroyed . | . . . Combat | -11 -10 -9 -------- Run | Yrd Mat Mat Hostile Shots Fired 242 | . 58 184 Missed 66 | . 26 40 Damage Taken 2075 | . 340 1735 Core 434 | . 29 405 Absorbed by Shields . | . . . Redirected to Shielding 50 | . . 50 Core Remaining (%) 94 | 100 88 . Volleys Fired 98 | . 30 68 Largest 2 | . 2 2 Hottest 126 | . 76 126 Shots Fired 168 | . 59 109 Gun 155 | . 58 97 Cannon 13 | . 1 12 Launcher . | . . . Special . | . . . Kinetic 113 | . 58 55 Thermal 42 | . . 42 Explosive . | . . . Electromagnetic 13 | . 1 12 Robot Hit Streak 13 | . 6 13 Robot Miss Streak 6 | . 4 6 Penetration Max . | . . . Secondary Targets . | . . . Shots Hit Robots 109 | . 35 74 Core Hits 30 | . 12 18 Critical Kills . | . . . Critical Parts Destroyed . | . . . Critical Strikes 1 | . . 1 Burn 1 | . . 1 Melee Attacks . | . . . Impact . | . . . Slashing . | . . . Piercing . | . . . Sneak Attacks . | . . . Combat Hostiles . | . . . Follow-up Attacks . | . . . Damage Inflicted 1302 | 3 391 908 Guns 1088 | . 391 697 Cannons 208 | . . 208 Explosions . | . . . Melee . | . . . Ramming 6 | 3 . 3 Kinetic 648 | . 391 257 Thermal 440 | . . 440 Explosive . | . . . Electromagnetic 208 | . . 208 Impact . | . . . Slashing . | . . . Piercing . | . . . Highest Corruption 2 | . . 2 Average Corruption 1 | . . 1 Corruption Purged . | . . . Corruption Blocked . | . . . Effects 9 | . . 9 Message Errors 1 | . . 1 Matter Fused 2 | . . 2 Heat Flow Errors 1 | . . 1 Energy Discharges 1 | . . 1 Parts Rejected 2 | . . 2 Parts Fused 1 | . . 1 Data Loss (minor) 1 | . . 1 Overload Shots . | . . . Overflow Damage . | . . . Projectiles . | . . . Explosions . | . . . Melee . | . . . Knockbacks . | . . . Impact . | . . . Kinetic . | . . . Secondary . | . . . Self-Inflicted Damage . | . . . Shots . | . . . Rammed 1 | . . 1 Targets Rammed 2 | 1 . 1 Kicked 1 | 1 . . Crushed . | . . . Highest Temperature 535 | . 18 535 Average Temperature 187 | . 9 205 Received Heat Transfer 930 | . 114 816 Effects 8 | . . 8 Shutdowns 3 | . . 3 Energy Bleed 1 | . . 1 Matter Decay 1 | . . 1 Short Circuit 1 | . . 1 Damage (minor) 1 | . . 1 Damage (major) 1 | . . 1 Siege Activations . | . . . Robots Corrupted . | . . . Combat Hostiles . | . . . Parts Fried . | . . . Impact Corruptions . | . . . Robots Melted . | . . . Combat Hostiles . | . . . Parts Melted . | . . . Heat Transferred 1036 | . . 1036 Parts Sabotaged . | . . . Parts Stolen . | . . . Parts Stripped . | . . . Power Chain Reactions . | . . . Alert | -11 -10 -9 ------- Run | Yrd Mat Mat Peak Influence 251 | . 107 251 Initial 44 | . . 44 Average 92 | . 59 120 Maximum Alert Level 1 | . . 1 Low Security (%) 88 | 100 100 81 Level 1 11 | . . 18 Level 2 . | . . . Level 3 . | . . . Level 4 . | . . . Level 5 . | . . . High Security . | . . . Max Security . | . . . Squads Dispatched 4 | . . 4 Investigation 3 | . . 3 Extermination . | . . . Reinforcement 1 | . . 1 Assault . | . . . Garrison . | . . . Intercept . | . . . Searches Triggered . | . . . Construction Impeded . | . . . Haulers Reinforced . | . . . Active Scanning Responses . | . . . Cargo Convoy Interrupts . | . . . Stealth | -11 -10 -9 --------- Run | Yrd Mat Mat Distress Signals . | . . . Communications Jammed . | . . . Distress Signals . | . . . Times Spotted 25 | . 6 19 Peak Tracking Total 7 | . 5 7 Tactical Retreats 3 | . . 3 Traps | -11 -10 -9 ------- Run | Yrd Mat Mat Traps Triggered 3 | . . 3 Indirectly . | . . . Trap Hack Attempts . | . . . Triggered . | . . . Disarmed . | . . . Reprogrammed . | . . . Reused . | . . . Traps Extracted . | . . . Installed . | . . . Triggered . | . . . Machines | -11 -10 -9 ---------- Run | Yrd Mat Mat Machines Disabled 1 | . . 1 Max in Single Turn 1 | . . 1 Machines Repaired . | . . . Machines Dismantled . | . . . Machines Sabotaged . | . . . Overloaded Fab Kills . | . . . Hacking | -11 -10 -9 --------- Run | Yrd Mat Mat Machines Accessed 3 | . . 3 Terminals 2 | . . 2 Fabricators . | . . . Repair Stations . | . . . Recycling Units . | . . . Scanalyzers 1 | . . 1 Garrison Access . | . . . Total Hacks 15 | . . 15 Successful 8 | . . 8 Failed 7 | . . 7 Catastrophic 2 | . . 2 Database Lockouts . | . . . Manual 3 | . . 3 Terminals 7 | . . 7 Fabricators . | . . . Repair Stations . | . . . Recycling Units . | . . . Scanalyzers 8 | . . 8 Garrison Access . | . . . Terminal Hacks 2 | . . 2 Locate Traps 1 | . . 1 Zone Layout 1 | . . 1 Fabricator Hacks . | . . . Repair Station Hacks . | . . . Recycling Unit Hacks . | . . . Scanalyzer 6 | . . 6 Insert Component 3 | . . 3 Analyze 3 | . . 3 Garrison Access Hacks . | . . . Unauthorized Hacks . | . . . Terminals . | . . . Fabricators . | . . . Repair Stations . | . . . Recycling Units . | . . . Scanalyzers . | . . . Garrison Access . | . . . Data Cores Recovered . | . . . Used . | . . . Hacking Detections 2 | . . 2 Full Trace Events 2 | . . 2 Feedback Events . | . . . Feedback Blocked . | . . . Robot Schematics Acquired . | . . . Robots Built . | . . . Authchips . | . . . Time . | . . . Total Robot Build Rating . | . . . Part Schematics Acquired 3 | . . 3 Parts Built . | . . . Authchips . | . . . Time . | . . . Total Part Build Rating . | . . . Parts Repaired . | . . . Time . | . . . Parts Recycled . | . . . Recycled Matter . | . . . Retrieved Matter . | . . . Retrieved Components . | . . . Parts Scanalyzed 3 | . . 3 Part Schematics Acquired 3 | . . 3 Parts Damaged . | . . . Bothacking | -11 -10 -9 ------------ Run | Yrd Mat Mat Used RIF Installer . | . . . Robots Hacked . | . . . Non-combat . | . . . Combat . | . . . Robot Hacks Applied . | . . . Relay Couplers Released . | . . . Fabnet Peak Effective % . | . . . Robots Rewired . | . . . Allies Hacked . | . . . Hacks Repelled . | . . . Allies | -11 -10 -9 -------- Run | Yrd Mat Mat Total Allies . | . . . Largest Group . | . . . Highest-Rated Group . | . . . Highest-Rated Ally . | . . . Total Orders . | . . . Ally Attacks . | . . . Total Damage . | . . . Kills . | . . . Allies Corrupted . | . . . Allies Melted . | . . . Intel | -11 -10 -9 ------- Run | Yrd Mat Mat Robot Analysis Total . | . . . Derelict Logs Recovered . | . . . Drone Launches . | . . . Drone Recoveries . | . . . Exploration | -11 -10 -9 ------------- Run | Yrd Mat Mat Turns Passed 968 | 89 277 602 Spaces Moved 485 | 57 153 275 Core 28 | 7 . 21 Treads 134 | . . 134 Legs 323 | 50 153 120 Wheels . | . . . Hover . | . . . Flight . | . . . Fastest Speed 50 | 50 120 100 Average Speed 133 | 131 120 141 Slowest Speed 200 | 200 120 200 Overloaded Moves . | . . . Propulsion Burnouts . | . . . Robots Hopped . | . . . Cave-ins Triggered . | . . . Exploration Rate (%) 17 | 4 26 21 Regions Visited 2 Branch Regions . Pre-discovered Areas . | . . . Known Exits Taken . | . . . Unknown Exits Taken 2 | 1 1 . Scrap Searched . | . . . Spaces Dug . | . . . Terrain Destroyed . | . . . Melee . | . . . Projectile . | . . . AOE . | . . . Terrain Rammed . | . . . Walls Destroyed . | . . . Machines Disabled . | . . . Actions | -11 -10 -9 --------- Run | Yrd Mat Mat Total 641 | 67 192 382 Wait 2 | . . 2 Move 483 | 56 152 275 Hop . | . . . Pick Up 19 | 4 6 9 Fast Attach 14 | 6 2 6 Attach 13 | . 1 12 Detach . | . . . Swap 6 | . . 6 Drop 4 | . 1 3 Fire 98 | . 30 68 Melee . | . . . Ram . | . . . Kick 1 | 1 . . Crush 1 | . . 1 Escape Stasis . | . . . Rewire . | . . . Trap . | . . . Miscellaneous . | . . . Route ------- -11/Scrapyard -10/Materials (discovered 2 exits: *Mat / [*Min]) -9/Materials History --------- Turn | Location | Event 48 | -11/Scrapyard | Discovered new exit (range 15) 90 | -11/Scrapyard | Entered Materials 219 | -10/Materials | Discovered new exit (range 6) 228 | -10/Materials | Discovered new exit (range 16) 320 | -10/Materials | Build established: Mutant 367 | -10/Materials | Entered another Materials area 367 | -9/Materials | Evolved 2 slots: Utility x2 592 | -9/Materials | Lost 4 parts (1p1n2w) 873 | -9/Materials | Core integrity fell below 50% 930 | -9/Materials | Core integrity fell below 20% 966 | -9/Materials | Lost 10 parts (2p5n3w) 969 | -9/Materials | Destroyed by G-34 Mercenary with Small Laser Last Messages --------------- 00908_ K-01 Serf cleans the Repair Station. 00910_ Pulse Rifle destroyed. 00910_ Aluminum Leg destroyed. 00911_ Overheating: Energy bleed (-10). 00911_ Acquired 40 matter. 00911_ K-01 Serf collects debris. 00917_ Acquired Aluminum Leg. 00918_ Acquired 43 matter. 00918_ K-01 Serf collects debris. 00921_ Acquired Ion Engine. 00925_ K-01 Serf collects debris. 00928_ Aluminum Leg destroyed. 00928_ K-01 Serf collects debris. 00935_ Lgt. Ion Engine destroyed. 00938_ K-01 Serf collects debris. 00950_ Acquired Pulse Rifle. 00956_ G-34 Mercenary destroyed. 00961_ K-01 Serf cleans the Repair Station. 00965_ K-01 Serf collects debris. 00967_ Power Shielding destroyed. Map ----- +----------------------------------------------------+ | ?????????????????????????????????????????????????? | | ?????????????????????????????????????????????????? | | ?????????????????????????????????????????????????? | | #?????????#############??????????????????????????? | | ######????#############??????????????????????????? | | ######????## ##??????????????????????????? | | ##????## """ """ ##??????????????????????????? | | ### ##????## """ """ ##??????????????????????????? | | ### ##????## """ """ ##??????????????????????????? | | ### ##????## ##??????????????????????????? | | ""# ###???## ! ##??????????????????????????? | | ""# ###???## ##??????????????????????????? | | ####### *=[ ###?????????????????????????? | | ###########+##########??????????????????????? | | + # + #??????????????????????? | | " # %# # """ #??????????????????????? | | T # [[+= # """ #??????????????????????? | | " + =#%* + """ # ?????????????????????? | | # #=! # # ?????????????????????? | | # #%! # # ?????????????????????? | | ## #=%=######### ?????????????????????? | | ### ## #* ##?????????????????????????????? | | ### ## # ##?????????????????????????????? | | ### ########### ##?????????????????#???????????? | | ### ########### ##???########????? #???????????? | | ###+#####????## ! ##???# @!!!!#???? #???????????? | | #????## =##???#[ !#??? #???????????? | | ????????????## ##???# = #??# ##??????????? | | ????????????# ##### ### !#??????????? | | ????????????# #??????????? | | ?????????????# m T #??????????? | | ?????????????# k #??????????? | | ?????????????# ##########g### #??????????? | | ???????????#####+#####?#= !k #######??????????? | | ???????????# #?# """ #????????????????? | | ???????????# "" #?# "R" #????????????????? | | ???????????# """ """ #?# " " #????????????????? | | ???????????# """ S" #?# % #????????????????? | | ???????????# """ #?# "" % #????????????????? | | ???????????# #?# """" #????????????????? | | ???????????# #?# """" !######???????????? | | ???????????# !#?# + #???????????? | | ???????????###########?###############???????????? | | ?????????????????????????????????????????????????? | | ?????????????????????????????????????????????????? | | ?????????????????????????????????????????????????? | | ?????????????????????????????????????????????????? | | ?????????????????????????????????????????????????? | | ?????????????????????????????????????????????????? | | ?????????????????????????????????????????????????? | +----------------------------------------------------+ Best States ------------- Heat Dissipation 28 Energy Generation 12 Energy Capacity 265 Matter Stores 296 Matter Capacity 300 Sight Range 16 Terrain Scan Range 14 Terrain Scan Density 10 Power Shielding 33 Evasion (%) 55 Targeting Accuracy 8 Recoil Reduction 2 Item Schematics ----------------- Terrain Scan Processor | -9/Materials | Scanalyzed Terrain Scanner | -9/Materials | Scanalyzed Trap Scanner | -9/Materials | Scanalyzed Robot Schematics ------------------ None Fabricated ------------ Nothing Alien Tech Used ----------------- None Achievements -------------- None Challenges ------------ None Game ------ Seed AblativeEnhancedSuite Manual? 0 Play Time 00:09:28 Cumulative 12.5 hours Start 2024.06.30 @ 19:51:57 End 2024.06.30 @ 20:01:10 Sessions 1 Manual Loads 0 Difficulty Rogue Special Mode None Game No. 31 Rogue 31 Adventurer 0 Explorer 0 Win Type - Total 0 Types 0/0/0/0/0/0/0/0/0 Lore% 16 Gallery% 19 Achievement% 17 Wizard Run 0 Options --------- Layout 1 ASCII 0 Keyboard 1 Movement Arrows Keybinds 0 Fullscreen 1 Font 24/Smallcaps Map View 50x35 Zoom Use 0% Tactical HUD 1 Map Filters NONE Filters NONE Steam 1 RUN: ac3dc50c-3589-44d9-aa94-cf581282c815